bitfinex/quotes_BTCUSD_20250730
["timestamp","ask_amount","ask_price","bid_price","bid_amount"]
[1753900499902,0.0254332,117950.0,117940.0,0.13688]
[1753900500130,0.20347459,117950.0,117940.0,0.13688]
[1753900500353,0.66752987,117950.0,117940.0,0.1368]
[1753900500562,1.00752987,117950.0,117940.0,0.1368]
[1753900500715,1.00752987,117950.0,117940.0,0.002]
[1753900500915,0.47926375,117950.0,117940.0,0.002]
[1753900501121,0.56434982,117950.0,117940.0,0.001]
[1753900501495,0.39478645,117950.0,117940.0,0.001]
[1753900501703,0.57282698,117950.0,117940.0,0.001]
[1753900501900,0.9230525,117950.0,117940.0,0.001]
[1753900502302,0.17805649,117940.0,117930.0,0.00014567]
[1753900502587,0.62123654,117940.0,117930.0,0.13494567]
[1753900502793,0.27949112,117940.0,117930.0,0.13494567]
[1753900503439,0.2710126,117940.0,117930.0,0.13494567]
[1753900503654,0.10143456,117940.0,117930.0,0.13494567]
[1753900503885,0.2710126,117940.0,117930.0,0.00214567]
[1753900504111,0.58062061,117930.0,117920.0,0.1]
[1753900504325,0.58062061,117930.0,117920.0,0.1004858]
[1753900504326,6.27020629,117930.0,117920.0,0.1004858]
[1753900504980,1.28347976,117930.0,117920.0,0.1004858]
[1753900505186,6.28347976,117930.0,117920.0,0.1004858]
[1753900505400,6.28547976,117930.0,117920.0,0.1004858]
[1753900505858,6.3113498,117930.0,117920.0,0.1004858]
[1753900506736,6.3093498,117930.0,117920.0,0.1004858]
[1753900507236,6.3113498,117930.0,117920.0,0.1004858]
[1753900507463,6.2466298,117930.0,117920.0,0.1004858]
[1753900507682,5.85126644,117930.0,117920.0,0.1004858]
[1753900507898,6.20996919,117930.0,117920.0,0.1004858]
[1753900508517,6.20796919,117930.0,117920.0,0.1004858]
[1753900508848,6.20796919,117930.0,117920.0,0.1014858]
[1753900509056,6.23136919,117930.0,117920.0,0.1014858]
[1753900509491,6.28385909,117930.0,117920.0,0.1014858]
[1753900509889,6.30452901,117930.0,117920.0,0.1014858]
[1753900510096,6.30452901,117930.0,117920.0,0.1004858]
[1753900510991,6.11355572,117930.0,117920.0,0.1004858]
[1753900511201,5.81617009,117930.0,117920.0,0.1004858]
[1753900511412,6.15617009,117930.0,117920.0,0.1004858]
[1753900511860,6.20257009,117930.0,117920.0,0.1004858]
[1753900512106,5.76448063,117930.0,117920.0,0.1004858]
[1753900512319,5.6284773,117930.0,117920.0,0.1004858]
[1753900512525,5.48391917,117930.0,117920.0,0.1004858]
[1753900512734,0.51515073,117930.0,117920.0,0.1004858]
[1753900512960,6.05241597,117930.0,117920.0,0.1004858]
[1753900513480,5.91697597,117930.0,117920.0,0.1004858]
[1753900513701,6.13693327,117930.0,117920.0,0.1004858]
[1753900513906,6.13593327,117930.0,117920.0,0.1004858]
[1753900514315,5.96634071,117930.0,117920.0,0.1004858]
[1753900514520,6.05993493,117930.0,117920.0,0.1004858]
[1753900514770,5.8988224,117930.0,117920.0,0.1004858]
[1753900514972,5.88186327,117930.0,117920.0,0.1004858]
[1753900515183,5.03072239,117930.0,117920.0,0.1004858]
[1753900515396,0.51327337,117930.0,117920.0,0.1462858]
[1753900515597,0.35327337,117930.0,117920.0,0.1462858]
[1753900515815,0.35327337,117930.0,117920.0,0.25217796]
[1753900515816,0.01327337,117930.0,117920.0,0.25217796]
[1753900516037,0.01327337,117930.0,117920.0,0.3662031]
[1753900516470,0.35327337,117930.0,117920.0,0.3662031]
[1753900517088,0.35327337,117930.0,117920.0,0.3692031]
[1753900517304,0.35327337,117930.0,117920.0,0.3662031]
[1753900517504,0.35327337,117930.0,117920.0,0.3672031]
[1753900518142,0.35327337,117930.0,117920.0,0.3712031]
[1753900518564,0.53147982,117950.0,117920.0,0.89461895]
[1753900518565,0.02038146,117950.0,117920.0,0.89461895]
[1753900518769,0.03022413,117960.0,117940.0,0.0459]
[1753900518978,0.37870107,117960.0,117940.0,0.0459]
[1753900519182,0.36174712,117960.0,117940.0,0.0459]
[1753900519599,0.37022406,117960.0,117940.0,0.0459]
[1753900519812,0.34,117960.0,117930.0,0.2198773]
[1753900520016,0.36894406,117960.0,117940.0,0.0476]
[1753900520219,0.00847759,117950.0,117940.0,0.0476]
[1753900520429,0.00847766,117950.0,117940.0,0.0476]
[1753900520645,0.00847831,117940.0,117930.0,0.2421773]
[1753900520854,0.35870275,117940.0,117930.0,0.1811]
[1753900521100,0.72413631,117950.0,117930.0,0.1811]
[1753900521317,0.73976664,117950.0,117930.0,0.1811]
[1753900521528,0.406991,117950.0,117940.0,0.001]
[1753900521745,0.406991,117950.0,117930.0,0.1811]
[1753900521746,0.75721602,117950.0,117930.0,0.1811]
[1753900521952,0.7331076,117950.0,117930.0,0.1811]
[1753900522211,0.72462943,117950.0,117930.0,0.1811]
[1753900522413,0.35744902,117950.0,117940.0,0.0471]
[1753900523021,0.3744042,117950.0,117940.0,0.0471]
[1753900523262,0.35744902,117950.0,117940.0,0.0471]
[1753900523493,0.17315621,117960.0,117950.0,0.0444]
[1753900523704,0.04639301,117960.0,117950.0,0.0444]
[1753900523917,0.05118543,117960.0,117950.0,0.0444]
[1753900524549,0.02046719,117960.0,117950.0,0.18414]
[1753900524758,0.02046719,117960.0,117950.0,0.1796]
[1753900524879,0.34,117960.0,117950.0,0.1796]
[1753900525534,0.36096772,117960.0,117950.0,0.1796]
[1753900526175,0.02096772,117960.0,117950.0,0.1796]
[1753900526358,0.89852278,117980.0,117950.0,0.1796]
[1753900526560,0.01744902,117970.0,117960.0,0.0443]
[1753900527337,0.01744902,117970.0,117960.0,0.0223]
[1753900527648,0.02607064,117970.0,117960.0,0.0223]
[1753900527857,0.01759456,117970.0,117960.0,0.0233]
[1753900528571,0.66563275,117970.0,117960.0,0.001]
[1753900528806,5.47772756,117970.0,117960.0,0.001]
[1753900528980,5.40172627,117970.0,117960.0,0.001]
[1753900529135,5.57973798,117970.0,117960.0,0.001]
[1753900529341,5.92468517,117970.0,117960.0,0.001]
[1753900529689,6.26105237,117970.0,117960.0,0.001]
[1753900529968,6.34552967,117970.0,117960.0,0.001]
[1753900530380,0.01695582,117950.0,117940.0,0.135]
[1753900530551,0.85065685,117960.0,117940.0,0.1816]
[1753900530787,0.3569541,117960.0,117940.0,0.1816]
[1753900531003,0.34,117960.0,117940.0,0.1816]
[1753900531213,0.34,117960.0,117950.0,0.0466]
[1753900532007,0.34847694,117960.0,117950.0,0.0466]
[1753900532245,0.34,117960.0,117950.0,0.0466]
[1753900532428,0.54498595,117970.0,117950.0,0.0466]
[1753900532681,0.0084768,117960.0,117950.0,0.0466]
[1753900532860,0.5449866,117970.0,117950.0,0.0466]
[1753900533065,0.40142987,117970.0,117950.0,0.0466]
[1753900533218,0.4099066,117970.0,117950.0,0.0466]
[1753900533419,0.39295322,117970.0,117950.0,0.0486]
[1753900533651,0.40142916,117970.0,117950.0,0.0466]
[1753900533866,0.38447649,117970.0,117950.0,0.07320773]
[1753900534059,0.0318195,117970.0,117950.0,0.11208503]
[1753900534314,0.04029572,117970.0,117950.0,0.11208503]
[1753900534441,0.54029572,117970.0,117960.0,0.13488]
[1753900534646,0.54029572,117970.0,117960.0,0.17918]
[1753900535086,0.5328195,117970.0,117960.0,0.2083065]
[1753900535252,0.54129565,117970.0,117960.0,0.2083065]
[1753900535687,0.5318195,117970.0,117960.0,0.17918]
[1753900535969,0.54029558,117970.0,117960.0,0.17918]
[1753900536762,0.5752593,117970.0,117960.0,0.13488]
[1753900536931,0.95577237,117970.0,117960.0,0.001]
[1753900537151,1.04024967,117970.0,117960.0,0.001]
[1753900537356,6.04024967,117970.0,117960.0,0.001]
[1753900537991,5.92598247,117970.0,117960.0,0.001]
[1753900538199,0.92598247,117970.0,117960.0,0.001]
[1753900538513,5.93445884,117970.0,117960.0,0.001]
[1753900538757,5.76492422,117970.0,117960.0,0.001]
[1753900539494,5.93445884,117970.0,117960.0,0.001]
[1753900539706,5.76492422,117970.0,117960.0,0.001]
[1753900539890,5.94293549,117970.0,117960.0,0.001]
[1753900540350,5.77340087,117970.0,117960.0,0.001]
[1753900540550,5.39774467,117970.0,117960.0,0.001]
[1753900540772,0.3718195,117970.0,117960.0,0.0444]
[1753900540990,0.35855139,117970.0,117960.0,0.1467933]
[1753900541383,0.35855139,117970.0,117960.0,0.1288773]
[1753900542030,0.00014554,117970.0,117960.0,0.1288773]
[1753900542224,0.00014554,117970.0,117960.0,0.13099666]
[1753900542654,0.00014554,117970.0,117960.0,0.30054565]
[1753900542803,0.00014554,117970.0,117960.0,0.29842629]
[1753900543007,0.00014554,117970.0,117960.0,0.2133546]
[1753900543216,0.00014554,117970.0,117960.0,0.2123546]
[1753900543532,0.00014554,117970.0,117960.0,0.38890359]
[1753900543679,0.00014554,117970.0,117960.0,0.2193546]
[1753900544353,0.00014554,117970.0,117960.0,0.1348773]
[1753900544520,0.00014554,117970.0,117960.0,0.13699666]
[1753900544722,0.00014554,117970.0,117960.0,0.1348773]
[1753900544928,0.02993544,117970.0,117960.0,0.2693973]
[1753900545193,0.00014554,117970.0,117960.0,0.2693973]
[1753900545611,0.00014554,117970.0,117960.0,0.2663973]
[1753900546174,0.00014554,117970.0,117960.0,0.2683973]
[1753900546361,0.00014554,117970.0,117960.0,0.2643973]
[1753900546927,0.00014554,117970.0,117960.0,0.29383703]
[1753900548080,0.00014554,117970.0,117960.0,0.2457973]
[1753900548282,0.36732451,117970.0,117960.0,0.005]
[1753900548484,0.91973769,117970.0,117960.0,0.13936]
[1753900548700,0.91973769,117970.0,117960.0,0.005]
[1753900548910,0.75020292,117970.0,117960.0,0.005]
[1753900549155,0.39150017,117970.0,117960.0,0.005]
[1753900549344,0.35759456,117970.0,117960.0,0.005]
[1753900549589,0.35759456,117970.0,117960.0,0.0486]
[1753900550272,0.00014554,117970.0,117960.0,0.064896]
[1753900550489,0.00014554,117970.0,117960.0,0.0466]
[1753900550931,0.00014554,117970.0,117960.0,0.1310773]
[1753900551126,0.00014554,117970.0,117960.0,0.13319666]
[1753900551614,0.00014554,117970.0,117960.0,0.30274565]
[1753900551821,0.00014554,117970.0,117960.0,0.2155546]
[1753900552266,0.00014554,117970.0,117960.0,0.1310773]
[1753900552484,0.00014554,117970.0,117960.0,0.13219666]
[1753900552905,0.00014554,117970.0,117960.0,0.13319666]
[1753900553123,0.00014554,117970.0,117960.0,0.13219666]
[1753900553506,0.00014554,117970.0,117960.0,0.13519666]
[1753900554168,0.00014554,117970.0,117960.0,0.21967396]
[1753900554384,0.00014554,117970.0,117960.0,0.2175546]
[1753900554602,0.00014554,117970.0,117960.0,0.38710359]
[1753900554813,0.00014554,117970.0,117960.0,0.74580634]
[1753900556287,0.00014554,117970.0,117960.0,0.38710359]
[1753900561253,0.00014554,117970.0,117960.0,0.76276101]
[1753900561479,0.00014554,117970.0,117960.0,0.74580634]
[1753900561897,0.00014554,117970.0,117960.0,0.38710359]
[1753900562110,0.35884829,117970.0,117960.0,0.2215173]
[1753900562323,0.38962444,117970.0,117960.0,0.2185173]
[1753900562546,0.45776701,117970.0,117960.0,0.13464]
[1753900562765,0.80624409,117970.0,117960.0,0.13964]
[1753900562976,0.80624395,117970.0,117960.0,0.14364]
[1753900563189,0.7849307,117970.0,117960.0,0.13864]
[1753900563407,0.7849307,117970.0,117960.0,0.14164]
[1753900563624,0.75950067,117970.0,117960.0,0.14164]
[1753900563840,0.75950067,117970.0,117960.0,0.13864]
[1753900564059,0.75950067,117970.0,117960.0,0.13564]
[1753900564281,1.03943812,117970.0,117960.0,0.13564]
[1753900564508,0.79390278,117970.0,117960.0,0.13464]
[1753900564731,0.00847709,117960.0,117930.0,0.0452]
[1753900564948,0.73859731,117970.0,117940.0,0.2190373]
[1753900565177,0.34014554,117970.0,117950.0,0.0447]
[1753900565393,0.34014554,117970.0,117960.0,0.13452]
[1753900566032,0.00014554,117970.0,117960.0,0.24536703]
[1753900566251,0.00014554,117970.0,117960.0,0.29076703]
[1753900566696,0.00014554,117970.0,117960.0,0.24736703]
[1753900568412,0.00014554,117970.0,117960.0,0.24936703]
[1753900568828,0.00014554,117970.0,117960.0,0.2229973]
[1753900569068,0.00862169,117970.0,117960.0,0.2229973]
[1753900569271,0.39275361,117970.0,117960.0,0.13852]
[1753900569487,0.35884829,117970.0,117960.0,0.13852]
[1753900569703,0.00862162,117970.0,117960.0,0.13852]
[1753900569920,0.00014554,117970.0,117960.0,0.13852]
[1753900570123,0.00862169,117970.0,117960.0,0.13852]
[1753900570359,0.00014554,117970.0,117960.0,0.13852]
[1753900570572,0.00862162,117970.0,117960.0,0.13852]
[1753900571002,0.00014554,117970.0,117960.0,0.152372]
[1753900571209,0.00014554,117970.0,117960.0,0.13852]
[1753900571424,0.01709806,117970.0,117960.0,0.004]
[1753900571654,0.00014554,117970.0,117960.0,0.13856]
[1753900572045,0.00862169,117970.0,117960.0,0.13856]
[1753900572257,0.00014554,117970.0,117960.0,0.13856]
[1753900572478,0.00862176,117970.0,117960.0,0.13456]
[1753900572685,0.65981319,117970.0,117960.0,0.1344]
[1753900572902,0.84320145,117970.0,117960.0,0.1354]
[1753900573088,1.0212128,117970.0,117960.0,0.1354]
[1753900573314,0.79460329,117970.0,117960.0,0.1354]
[1753900573523,0.95566161,117970.0,117960.0,0.1354]
[1753900573739,0.76069731,117970.0,117960.0,0.1354]
[1753900573960,0.74877346,117970.0,117960.0,0.1354]
[1753900574195,0.77420277,117970.0,117960.0,0.1344]
[1753900574859,0.74877339,117970.0,117960.0,0.1344]
[1753900575088,0.72577339,117970.0,117960.0,0.1344]
[1753900575300,0.74272606,117970.0,117960.0,0.1344]
[1753900575547,0.74747339,117970.0,117960.0,0.1344]
[1753900575774,0.37554686,117970.0,117960.0,0.1344]
[1753900575976,0.34114554,117970.0,117950.0,0.17918]
[1753900576186,0.34962176,117970.0,117950.0,0.17918]
[1753900576395,0.34962176,117970.0,117950.0,0.15778]
[1753900576616,0.34114554,117970.0,117950.0,0.18265428]
[1753900576893,0.34114554,117970.0,117950.0,0.15778]
[1753900576894,0.35809792,117970.0,117950.0,0.15778]
[1753900577104,0.34114554,117970.0,117950.0,0.15778]
[1753900577309,0.34014554,117970.0,117950.0,0.15778]
[1753900577757,0.34114554,117970.0,117950.0,0.15778]
[1753900577980,0.34114554,117970.0,117960.0,0.0461]
[1753900578248,0.34114554,117970.0,117960.0,0.0228]
[1753900578993,0.00114554,117970.0,117950.0,0.2649573]
[1753900579495,0.01809784,117970.0,117950.0,0.2649573]
[1753900579757,0.40122991,117970.0,117960.0,0.13428]
[1753900580008,1.01541458,117970.0,117960.0,0.1342]
[1753900580192,1.04743354,117970.0,117960.0,0.1342]
[1753900580706,0.97292882,117970.0,117930.0,0.0451]
[1753900580983,0.57538428,117960.0,117940.0,0.2187173]
[1753900581220,0.61588018,117960.0,117940.0,0.2187173]
[1753900581433,0.41242171,117960.0,117940.0,0.2187173]
[1753900581683,0.34,117960.0,117940.0,0.2187173]
[1753900581915,0.34,117960.0,117940.0,0.28849903]
[1753900582431,0.34,117960.0,117940.0,0.2621173]
[1753900583256,0.35695381,117960.0,117940.0,0.2621173]
[1753900583510,0.35695381,117960.0,117950.0,0.1342]
[1753900583725,0.3484768,117960.0,117950.0,0.1342]
[1753900583960,0.35695367,117960.0,117950.0,0.1342]
[1753900584174,0.34,117960.0,117950.0,0.1342]
[1753900584443,0.3484768,117960.0,117950.0,0.1342]
[1753900584695,0.43160565,117960.0,117950.0,0.1342]
[1753900585167,0.3484768,117960.0,117950.0,0.1352]
[1753900585337,0.36543083,117960.0,117950.0,0.1352]
[1753900585617,0.3484768,117960.0,117950.0,0.1352]
[1753900586072,0.42961864,117970.0,117950.0,0.1352]
[1753900586312,0.34,117960.0,117950.0,0.1352]
[1753900586545,0.41865719,117960.0,117950.0,0.1352]
[1753900587043,0.72956612,117970.0,117950.0,0.1352]
[1753900587294,0.4065185,117970.0,117950.0,0.1342]
[1753900587532,0.72956612,117970.0,117950.0,0.1787]
[1753900588249,0.37933945,117970.0,117950.0,0.1787]
[1753900588512,0.38033945,117970.0,117950.0,0.1787]
[1753900588751,0.38033945,117970.0,117950.0,0.20501773]
[1753900588990,0.38033945,117970.0,117950.0,0.1787]
[1753900589208,0.37186337,117970.0,117950.0,0.1787]
[1753900589720,0.38033945,117970.0,117950.0,0.1787]
[1753900589953,0.37186337,117970.0,117950.0,0.1787]
[1753900590396,0.35441435,117970.0,117950.0,0.2631773]
[1753900590702,0.35441435,117970.0,117960.0,0.1290773]
[1753900590909,0.34114554,117970.0,117960.0,0.1290773]
[1753900591341,0.00114554,117970.0,117960.0,0.1290773]
[1753900591986,0.00014554,117970.0,117960.0,0.1290773]
[1753900593180,0.00114554,117970.0,117960.0,0.1290773]
[1753900593344,0.00114554,117970.0,117960.0,0.17736747]
[1753900593553,0.00014554,117970.0,117960.0,0.17736747]
[1753900593769,0.00014554,117970.0,117960.0,0.18336747]
[1753900596182,0.00014554,117970.0,117960.0,0.35291646]
[1753900596336,0.00014554,117970.0,117960.0,0.71161921]
[1753900596735,0.00014554,117970.0,117960.0,0.35291646]
[1753900598430,0.00014554,117970.0,117960.0,0.18336747]
[1753900598772,0.00014554,117970.0,117960.0,0.1350773]
[1753900598996,0.00014554,117970.0,117960.0,0.27095666]
[1753900599239,0.00014554,117970.0,117960.0,0.2688373]
[1753900599797,0.00014554,117970.0,117960.0,0.1350773]
[1753900599999,0.00014554,117970.0,117960.0,0.2460573]
[1753900600245,0.00014554,117970.0,117960.0,0.0904773]
[1753900600246,0.36732437,117970.0,117960.0,0.0904773]
[1753900600547,0.80425407,117970.0,117960.0,0.13968]
[1753900600917,0.73650067,117970.0,117960.0,0.13368]
[1753900601120,0.75345391,117970.0,117960.0,0.13768]
[1753900601329,0.75345383,117970.0,117960.0,0.13568]
[1753900601442,0.78547279,117970.0,117960.0,0.13568]
[1753900601644,0.78547279,117970.0,117960.0,0.13368]
[1753900601866,0.78547272,117970.0,117960.0,0.13368]
[1753900602065,0.78547265,117970.0,117960.0,0.13368]
[1753900602299,0.96348518,117970.0,117960.0,0.13368]
[1753900602506,0.9691328,117970.0,117960.0,0.13368]
[1753900602950,0.36543111,117960.0,117930.0,0.0448]
[1753900603160,0.04049648,117950.0,117940.0,0.2180773]
[1753900603590,0.72777969,117960.0,117940.0,0.2180773]
[1753900603721,0.3484768,117960.0,117940.0,0.2180773]
[1753900603936,1.02249598,117960.0,117940.0,0.2180773]
[1753900604207,0.85773813,117960.0,117940.0,0.2180773]
[1753900604409,1.02728794,117960.0,117940.0,0.2180773]
[1753900604732,0.39261418,117950.0,117920.0,0.1437]
[1753900604909,0.38413832,117940.0,117930.0,0.2180373]
[1753900605048,0.9788362,117940.0,117930.0,0.13356]
[1753900605261,0.82621586,117940.0,117930.0,0.13356]
[1753900605502,0.82621579,117940.0,117930.0,0.13356]
[1753900605708,0.99579632,117940.0,117920.0,0.1]
[1753900605928,5.56795372,117930.0,117920.0,0.1]
[1753900606097,6.25846659,117930.0,117920.0,0.1]
[1753900606298,6.29240998,117930.0,117920.0,0.09721877]
[1753900606500,6.73559003,117930.0,117920.0,0.09193877]
[1753900606734,7.11059003,117930.0,117920.0,1e-08]
[1753900606938,7.11059003,117930.0,117840.0,0.11256275]
[1753900606939,0.00848471,117850.0,117840.0,0.11256275]
[1753900607142,0.70718631,117870.0,117840.0,0.33080005]
[1753900607343,0.61066602,117870.0,117850.0,0.0844773]
[1753900607555,0.00848413,117860.0,117850.0,0.0844773]
[1753900607762,0.91738348,117860.0,117850.0,0.0844773]
[1753900607922,5.90636452,117860.0,117850.0,0.0844773]
[1753900608132,0.17819246,117850.0,117840.0,0.0004858]
[1753900608343,0.63897922,117850.0,117840.0,0.00237285]
[1753900608551,6.10425408,117850.0,117840.0,0.00237285]
[1753900608754,6.10425408,117850.0,117830.0,0.0002]
[1753900608755,0.5796566,117840.0,117830.0,0.0002]
[1753900609020,0.17822271,117830.0,117820.0,0.0002]
[1753900609226,5.53567173,117830.0,117820.0,0.00028228]
[1753900609432,6.00463833,117830.0,117820.0,0.00028228]
[1753900609662,6.08911563,117830.0,117820.0,0.00028228]
[1753900609862,6.19137667,117830.0,117820.0,0.00028228]
[1753900610928,6.23467667,117830.0,117820.0,0.00028228]
[1753900611159,6.23467667,117830.0,117820.0,0.00128228]
[1753900611160,6.44292784,117830.0,117820.0,0.00128228]
[1753900611858,6.30864784,117830.0,117820.0,0.00028228]
[1753900612097,6.4087378,117830.0,117810.0,0.0002]
[1753900612359,6.45447468,117820.0,117810.0,0.00028219]
[1753900612594,6.63222232,117820.0,117810.0,0.00028219]
[1753900612838,1.6778181,117820.0,117810.0,0.00028219]
[1753900613061,1.6778181,117820.0,117810.0,1e-08]
[1753900613062,7.08896728,117820.0,117810.0,1e-08]
[1753900613300,7.08827506,117820.0,117810.0,1e-08]
[1753900613569,6.75465231,117820.0,117810.0,1e-08]
[1753900613809,6.85121122,117800.0,117790.0,0.0002]
[1753900614047,7.13194843,117800.0,117790.0,0.00034534]
[1753900614277,7.16225621,117800.0,117790.0,0.00034534]
[1753900614507,7.17554665,117800.0,117790.0,0.00034534]
[1753900614779,7.01055887,117800.0,117790.0,0.00034534]
[1753900615001,6.78657612,117800.0,117790.0,0.00034534]
[1753900615225,7.14527887,117800.0,117790.0,0.00034534]
[1753900615455,0.51828324,117790.0,117780.0,0.0002]
[1753900615680,6.13146498,117790.0,117780.0,0.00024846]
[1753900615915,6.15821919,117790.0,117780.0,4.846e-05]
[1753900616162,5.72680427,117770.0,117760.0,0.0002]
[1753900616405,6.68101609,117770.0,117760.0,0.00034586]
[1753900616626,5.51832865,117760.0,117750.0,0.00014586]
[1753900616907,5.86720688,117760.0,117750.0,0.00014586]
[1753900617104,5.94304409,117760.0,117750.0,0.00014586]
[1753900617356,5.43213892,117760.0,117750.0,0.00014586]
[1753900617577,6.12999082,117760.0,117750.0,0.00014586]
[1753900617812,6.05312215,117760.0,117750.0,0.00014586]
[1753900618045,6.24041393,117760.0,117750.0,0.00014586]
[1753900618262,6.24041393,117760.0,117740.0,0.0004]
[1753900618263,6.2357493,117750.0,117740.0,0.0004]
[1753900618494,5.57143129,117750.0,117740.0,0.0004]
[1753900618711,6.09972797,117750.0,117740.0,0.0004]
[1753900618955,5.58446765,117750.0,117740.0,0.0004]
[1753900619194,5.86476565,117750.0,117740.0,0.0004]
[1753900619413,5.39793764,117750.0,117740.0,0.0004]
[1753900619670,0.50724833,117760.0,117740.0,0.0004]
[1753900619671,0.59213892,117760.0,117740.0,0.0004]
[1753900620177,0.46782449,117760.0,117740.0,0.0438]
[1753900620178,0.45084167,117760.0,117740.0,0.0438]
[1753900620375,0.37530625,117760.0,117740.0,0.1120773]
[1753900620576,0.0166035,117760.0,117750.0,0.0221]
[1753900620786,0.37530625,117760.0,117750.0,0.0221]
[1753900621000,5.5,117760.0,117750.0,0.0221]
[1753900621244,0.00014534,117770.0,117760.0,0.0434]
[1753900621479,0.5,117800.0,117770.0,0.16981906]
[1753900621687,0.5,117800.0,117780.0,0.0021226]
[1753900621688,5.5,117800.0,117780.0,0.0021226]
[1753900621892,0.53697041,117800.0,117790.0,0.0844773]
[1753900622103,0.0084886,117800.0,117780.0,0.0844773]
[1753900622317,0.34,117790.0,117780.0,0.1282773]
[1753900622770,0.69870275,117790.0,117770.0,0.0219]
[1753900622975,0.34,117790.0,117780.0,0.0844773]
[1753900623193,0.3484891,117790.0,117770.0,0.044]
[1753900623400,0.35870275,117780.0,117770.0,0.1284773]
[1753900623609,0.3671925,117780.0,117770.0,0.1314773]
[1753900623817,0.35870275,117780.0,117770.0,0.1093773]
[1753900624066,0.34,117790.0,117770.0,0.1133773]
[1753900624247,0.35870275,117780.0,117770.0,0.1133773]
[1753900624453,0.35870275,117780.0,117770.0,0.1093773]
[1753900624658,0.35870275,117780.0,117770.0,0.1063773]
[1753900625095,0.75488038,117790.0,117770.0,0.1083773]
[1753900625278,0.75488038,117790.0,117770.0,0.1304773]
[1753900625487,0.77185866,117790.0,117770.0,0.1304773]
[1753900625702,0.36719257,117780.0,117760.0,0.0208]
[1753900625906,0.69870275,117770.0,117760.0,0.1052773]
[1753900626120,0.69870275,117770.0,117750.0,0.137]
[1753900626121,0.88550671,117770.0,117750.0,0.137]
[1753900626336,0.88550671,117770.0,117750.0,0.08496381]
[1753900626337,0.69870275,117760.0,117750.0,0.08496381]
[1753900626533,0.69870275,117760.0,117750.0,0.00048651]
[1753900626958,0.34,117760.0,117750.0,0.08496381]
[1753900627182,0.34,117760.0,117750.0,0.12726381]
[1753900627412,0.34,117760.0,117750.0,0.12926381]
[1753900627531,0.34,117760.0,117750.0,0.12726381]
[1753900627774,0.34,117760.0,117750.0,0.29711519]
[1753900628011,0.34,117770.0,117760.0,0.0438]
[1753900628208,0.374,117770.0,117760.0,0.1312773]
[1753900628891,0.34,117770.0,117760.0,0.1282773]
[1753900629342,0.34,117770.0,117760.0,0.1322773]
[1753900629487,0.69870275,117770.0,117760.0,0.1322773]
[1753900629702,0.7156842,117770.0,117760.0,0.0438]
[1753900629913,0.70719337,117770.0,117750.0,0.02148651]
[1753900630119,0.78318005,117770.0,117760.0,0.003]
[1753900630597,0.34,117770.0,117760.0,0.0207]
[1753900630731,0.34,117780.0,117770.0,0.0207]
[1753900630930,0.00848845,117800.0,117770.0,0.0844773]
[1753900631181,0.2037353,117800.0,117780.0,0.1272773]
[1753900631380,0.70719185,117790.0,117780.0,0.1051773]
[1753900631628,0.69870275,117790.0,117780.0,0.1051773]
[1753900631834,0.44145587,117790.0,117780.0,0.1051773]
[1753900632027,0.79166923,117790.0,117780.0,0.0844773]
[1753900632342,0.80864787,117790.0,117780.0,0.0844773]
[1753900632545,0.80015833,117790.0,117780.0,0.0844773]
[1753900632709,0.9869365,117790.0,117770.0,0.001]
[1753900632910,0.40115324,117780.0,117760.0,0.17944]
[1753900633117,0.0844773,117780.0,117760.0,0.2639173]
[1753900633294,0.43296648,117790.0,117770.0,0.0434]
[1753900633501,0.35870275,117780.0,117770.0,0.0228]
[1753900633711,0.3671925,117780.0,117770.0,0.0218]
[1753900633925,0.44145558,117790.0,117770.0,0.0218]
[1753900634099,0.35870275,117780.0,117760.0,0.2227173]
[1753900634304,0.35870275,117770.0,117760.0,0.2661173]
[1753900634500,0.35870275,117770.0,117760.0,0.1278773]
[1753900634691,0.34,117760.0,117750.0,0.00048651]
[1753900634907,0.72901053,117760.0,117750.0,0.00048651]
[1753900635115,0.72417763,117760.0,117750.0,0.00048651]
[1753900635338,5.76570389,117760.0,117750.0,0.00048651]
[1753900635746,5.77419559,117760.0,117750.0,0.00048651]
[1753900635963,6.09067036,117760.0,117750.0,0.00048651]
[1753900636380,5.5621303,117760.0,117750.0,0.00248651]
[1753900636596,5.7537514,117760.0,117750.0,0.00248651]
[1753900636803,6.26163823,117760.0,117750.0,0.00248651]
[1753900637028,5.37074133,117760.0,117750.0,0.00248651]
[1753900637240,0.01429231,117760.0,117750.0,0.02478651]
[1753900637466,0.001,117760.0,117750.0,0.04608651]
[1753900637886,0.34,117770.0,117750.0,0.12856381]
[1753900638086,0.34,117770.0,117760.0,0.0844773]
[1753900638514,0.5719557,117780.0,117760.0,0.0844773]
[1753900638738,0.01329088,117780.0,117760.0,0.1267773]
[1753900638943,0.17975699,117790.0,117760.0,0.1267773]
[1753900639170,0.68764382,117790.0,117760.0,0.1267773]
[1753900639378,0.67066511,117790.0,117760.0,0.1267773]
[1753900639607,0.34,117780.0,117760.0,0.1267773]
[1753900640030,0.88293739,117780.0,117760.0,0.1267773]
[1753900640275,0.88293739,117780.0,117760.0,0.1062773]
[1753900640486,0.34,117790.0,117760.0,0.1284773]
[1753900640696,0.34,117790.0,117770.0,0.0444]
[1753900641565,0.34,117790.0,117770.0,0.1288773]
[1753900641791,0.35697828,117790.0,117770.0,0.1288773]
[1753900642044,0.36177717,117790.0,117770.0,0.1288773]
[1753900642315,0.45474386,117790.0,117770.0,0.1288773]
[1753900642565,0.45474386,117790.0,117770.0,0.1076773]
[1753900642566,0.97112023,117790.0,117770.0,0.1076773]
[1753900642849,1.09092208,117780.0,117770.0,0.001]
[1753900643092,0.69524902,117780.0,117770.0,0.001]
[1753900643355,0.49524902,117780.0,117770.0,0.001]
[1753900643654,0.34,117780.0,117770.0,0.001]
[1753900643909,0.34,117780.0,117770.0,0.0442]
[1753900644191,0.34,117780.0,117770.0,0.0432]
[1753900644684,0.34,117780.0,117770.0,0.002]
[1753900645590,0.34,117780.0,117770.0,0.1301773]
[1753900645840,0.35672251,117780.0,117770.0,0.1291773]
[1753900646047,0.35672251,117780.0,117770.0,0.1069773]
[1753900646267,0.36521241,117780.0,117770.0,0.0884773]
[1753900646492,1.09868568,117780.0,117770.0,0.004]
[1753900646740,1.21525702,117780.0,117770.0,0.004]
[1753900646948,1.03695851,117780.0,117770.0,0.004]
[1753900647157,1.03695808,117780.0,117770.0,0.004]
[1753900647363,0.52058128,117780.0,117770.0,0.004]
[1753900647578,0.35672251,117780.0,117770.0,0.004]
[1753900648425,0.01328814,117790.0,117770.0,0.1323773]